[Event "WJCC U20 Open 2019"]
[Site "New Delhi"]
[Date "2019.10.17"]
[Round "4.39"]
[White "Mohd Saprin, Amir Ghaazi"]
[Black "Sterck, Arno"]
[Result "0-1"]
[ECO "A09"]
[WhiteElo "1942"]
[BlackElo "2331"]
[Annotator "NA"]
[PlyCount "104"]
[EventDate "2019.10.15"]
[EventType "swiss"]
[EventCountry "IND"]
[SourceTitle "playchess.com"]
[Source "ChessBase"]
[SourceQuality "1"]
[TimeControl "40/5400+30:1800+30"]

1. Nf3 {[%emt 0:00:00]} d5 {[%emt 0:00:00]} 2. c4 {[%emt 0:00:00]} d4 {[%emt 0:00:00]} 3. e3 {[%emt 0:11:12]} Nc6 {[%emt 0:00:00]} 4. b4 {[%emt 0:07:42]} dxe3 {[%emt 0:00:43]} 5. fxe3 {[%emt 0:00:55]} Nxb4 {[%emt 0:00:09]} 6. d4 {[%emt 0:00:25]} e5 {[%emt 0:05:18]} 7. a3 {[%emt 0:06:00]} Nc6 {[%emt 0:02:34]} 8. d5 {[%emt 0:01:28]} e4 {[%emt 0:00:07]} 9. dxc6 {[%emt 0:03:11]} Qxd1+ {[%emt 0:00:13]} 10. Kxd1 {[%emt 0:00:14]} exf3 {[%emt 0:00:03]} 11. gxf3 {[%emt 0:00:17]} Ne7 {[%emt 0:00:32]} 12. Nc3 {[%emt 0:11:20]} Nxc6 {[%emt 0:05:35]} 13. Nd5 {[%emt 0:01:07]} Bd6 {[%emt 0:00:38]} 14. Bb2 {[%emt 0:00:27]} Kf8 {[%emt 0:00:20]} 15. Rg1 {[%emt 0:07:43]} f6 {[%emt 0:01:17]} 16. h4 {[%emt 0:03:25]} Ne5 {[%emt 0:04:26]} 17. Be2 {[%emt 0:01:29]} c6 {[%emt 0:00:45]} 18. Nf4 {[%emt 0:14:35]} Kf7 {[%emt 0:02:32]} 19. Kc2 {[%emt 0:01:39]} Bc5 {[%emt 0:02:09]} 20. Bd4 {[%emt 0:12:28]} Bxd4 {[%emt 0:00:35]} 21. exd4 {[%emt 0:00:04]} Bf5+ {[%emt 0:00:17]} 22. Kc3 {[%emt 0:00:29]} Ng6 {[%emt 0:00:11]} 23. Ng2 {[%emt 0:03:40]} Rae8 {[%emt 0:02:52]} 24. Bd3 {[%emt 0:00:47]} Bxd3 {[%emt 0:00:18]} 25. Kxd3 {[%emt 0:00:04]} h5 {[%emt 0:00:15]} 26. Rab1 {[%emt 0:00:09]} Re7 {[%emt 0:00:15]} 27. Rb2 {[%emt 0:00:24]} Rd8 {[%emt 0:00:20]} 28. Kc3 {[%emt 0:01:05]} b6 {[%emt 0:01:04]} 29. a4 {[%emt 0:01:35]} Red7 {[%emt 0:02:41]} 30. Rd1 {[%emt 0:02:37]} Ne5 {[%emt 0:07:20]} 31. Rf2 {[%emt 0:00:32]} b5 {[%emt 0:00:49]} 32. axb5 {[%emt 0:04:43]} cxb5 {[%emt 0:00:07]} 33. cxb5 {[%emt 0:01:41]} Rc7+ {[%emt 0:00:48]} 34. Kb3 {[%emt 0:00:19]} Rd5 {[%emt 0:00:42]} 35. Ne3 {[%emt 0:00:30]} Rxb5+ {[%emt 0:03:00]} 36. Ka4 {[%emt 0:00:13]} Rcb7 {[%emt 0:02:13]} 37. dxe5 {[%emt 0:00:18]} Rb4+ {[%emt 0:01:40]} 38. Ka5 {[%emt 0:00:50]} R7b5+ {[%emt 0:06:57]} 39. Ka6 {[%emt 0:00:10]} Rb6+ {[%emt 0:00:04]} 40. Kxa7 {[%emt 0:00:11]} Rb7+ {[%emt 0:00:28]} 41. Ka6 {[%emt 0:30:56]} Rb8 {[%emt 0:31:01]} 42. Ka7 {[%emt 0:01:09]} R4b7+ {[%emt 0:00:14]} 43. Ka6 {[%emt 0:00:39]} Rb3 {[%emt 0:00:39]} 44. Ka7 {[%emt 0:00:00]} R8b4 {[%emt 0:00:00]} 45. Ra1 {[%emt 0:00:00]} Rxe3 {[%emt 0:00:00]} 46. exf6 {[%emt 0:00:00]} Kxf6 {[%emt 0:00:00]} 47. f4 {[%emt 0:00:00]} Rh3 {[%emt 0:00:00]} 48. Ra6+ {[%emt 0:00:00]} Kf7 {[%emt 0:00:00]} 49. Rg2 {[%emt 0:02:06]} Rhb3 {[%emt 0:00:00]} 50. Ra5 {[%emt 0:02:07]} Rxf4 {[%emt 0:00:00]} 51. Rgg5 {[%emt 0:01:28]} Rxh4 {[%emt 0:00:00]} 52. Raf5+ {[%emt 0:00:50]} Kg8 {[%emt 0:00:00]} 0-1

[Event "WJCC U20 Open 2019"]
[Site "New Delhi"]
[Date "2019.10.17"]
[Round "4.40"]
[White "Sivathanujan, S."]
[Black "Tifferet, Shaked"]
[Result "1/2-1/2"]
[ECO "C50"]
[WhiteElo "1766"]
[BlackElo "2224"]
[Annotator "NA"]
[PlyCount "110"]
[EventDate "2019.10.15"]
[EventType "swiss"]
[EventCountry "IND"]
[SourceTitle "playchess.com"]
[Source "ChessBase"]
[SourceQuality "1"]
[TimeControl "40/5400+30:1800+30"]

1. e4 e5 2. Nf3 Nc6 3. Bc4 Bc5 4. d3 Nf6 5. O-O d6 6. c3 a5 7. Be3 Bxe3 8. fxe3 O-O 9. Nbd2 a4 10. d4 Bg4 11. Qe1 Bxf3 12. Rxf3 Ne7 13. Qg3 Ng6 14. h4 c6 15. Raf1 d5 16. exd5 cxd5 17. Be2 exd4 18. exd4 Ne4 19. Nxe4 dxe4 20. Rf5 Qxh4 21. Qxh4 Nxh4 22. R5f4 g5 23. Rxe4 Ng6 24. Rf5 h6 25. Rb5 Nf4 26. Bc4 Rfc8 27. Bf1 a3 28. c4 axb2 29. Rxb2 Ne6 30. Kf2 Ra3 31. Re3 Ra4 32. d5 Nc5 33. a3 Ra5 34. Kf3 Rca8 35. Ra2 h5 36. Be2 f5 37. Kf2 Ne4+ 38. Ke1 g4 39. Bd1 Kf7 40. Rb2 Rxa3 41. Rxb7+ Kf6 42. Rb6+ Ke5 43. Re6+ Kf4 44. Rxa3 Rxa3 45. d6 Rd3 46. Rh6 Re3+ 47. Be2 Ra3 48. d7 Ra8 49. Bd1 Rd8 50. Ba4 Nc5 51. Bb5 Ke5 52. Rh7 Ke6 53. Rh6+ Ke5 54. Rh7 Ke6 55. Rh6+ Ke5 1/2-1/2

[Event "WJCC U20 Open 2019"]
[Site "New Delhi"]
[Date "2019.10.17"]
[Round "4.41"]
[White "Pranav Vijay"]
[Black "Li, William"]
[Result "1-0"]
[ECO "A45"]
[WhiteElo "2265"]
[BlackElo "2161"]
[Annotator "NA"]
[PlyCount "63"]
[EventDate "2019.10.15"]
[EventType "swiss"]
[EventCountry "IND"]
[SourceTitle "playchess.com"]
[Source "ChessBase"]
[SourceQuality "1"]
[TimeControl "40/5400+30:1800+30"]

1. d4 {[%emt 0:00:40]} Nf6 {[%emt 0:00:00]} 2. Bg5 {[%emt 0:00:12]} d5 {[%emt 0:00:00]} 3. Bxf6 {[%emt 0:00:07]} exf6 {[%emt 0:00:00]} 4. e3 {[%emt 0:00:45]} Be6 {[%emt 0:00:00]} 5. g3 {[%emt 0:01:30]} Bd6 {[%emt 0:01:01]} 6. Bg2 {[%emt 0:00:36]} c6 {[%emt 0:00:25]} 7. Ne2 {[%emt 0:00:22]} Nd7 {[%emt 0:04:13]} 8. Nd2 {[%emt 0:00:40]} f5 {[%emt 0:00:56]} 9. b3 {[%emt 0:02:50]} b5 {[%emt 0:02:34]} 10. c4 {[%emt 0:06:43]} b4 {[%emt 0:08:38]} 11. Qc2 {[%emt 0:07:40]} O-O {[%emt 0:03:47]} 12. O-O {[%emt 0:01:31]} Rc8 {[%emt 0:07:19]} 13. c5 {[%emt 0:05:05]} Be7 {[%emt 0:01:05]} 14. a3 {[%emt 0:00:09]} a5 {[%emt 0:06:31]} 15. axb4 {[%emt 0:02:01]} axb4 {[%emt 0:00:03]} 16. Ra6 {[%emt 0:00:45]} Qc7 {[%emt 0:06:18]} 17. Rfa1 {[%emt 0:01:00]} Rb8 {[%emt 0:00:21]} 18. Nf4 {[%emt 0:02:17]} g5 {[%emt 0:12:16]} 19. Ne2 {[%emt 0:00:23]} Bf6 {[%emt 0:09:35]} 20. Bh3 {[%emt 0:03:01]} f4 {[%emt 0:04:38]} 21. Bxe6 {[%emt 0:01:07]} fxe6 {[%emt 0:00:04]} 22. e4 {[%emt 0:04:02]} f3 {[%emt 0:12:37]} 23. Nxf3 {[%emt 0:01:57]} Nxc5 {[%emt 0:01:16]} 24. Qxc5 {[%emt 0:00:55]} Be7 {[%emt 0:00:01]} 25. Qc2 {[%emt 0:00:14]} Rxf3 {[%emt 0:00:10]} 26. Rxc6 {[%emt 0:00:05]} Qd8 {[%emt 0:06:07]} 27. Rxe6 {[%emt 0:00:32]} Qf8 {[%emt 0:00:22]} 28. exd5 {[%emt 0:01:17]} Rb7 {[%emt 0:03:04]} 29. Qc6 {[%emt 0:00:40]} Rxf2 {[%emt 0:00:50]} 30. d6 {[%emt 0:00:44]} Ra7 {[%emt 0:00:43]} 31. Re1 {[%emt 0:00:20]} Bd8 {[%emt 0:00:41]} 32. Re8 {[%emt 0:00:08]} 1-0

[Event "WJCC U20 Open 2019"]
[Site "New Delhi"]
[Date "2019.10.17"]
[Round "4.42"]
[White "Risting, Eivind Olav"]
[Black "Lama, Milan"]
[Result "1-0"]
[ECO "D20"]
[WhiteElo "2289"]
[BlackElo "1976"]
[Annotator "NA"]
[PlyCount "79"]
[EventDate "2019.10.15"]
[EventType "swiss"]
[EventCountry "IND"]
[SourceTitle "playchess.com"]
[Source "ChessBase"]
[SourceQuality "1"]
[TimeControl "40/5400+30:1800+30"]

1. d4 {[%emt 0:00:00]} d5 {[%emt 0:00:00]} 2. c4 {[%emt 0:00:00]} dxc4 {[%emt 0:00:00]} 3. e4 {[%emt 0:00:00]} e5 {[%emt 0:00:00]} 4. Nf3 {[%emt 0:00:01]} exd4 {[%emt 0:00:13]} 5. Bxc4 {[%emt 0:00:31]} Nc6 {[%emt 0:00:18]} 6. O-O {[%emt 0:00:10]} Be6 {[%emt 0:00:40]} 7. Bxe6 {[%emt 0:06:49]} fxe6 {[%emt 0:00:06]} 8. Qb3 {[%emt 0:00:04]} Qd7 {[%emt 0:00:10]} 9. Qxb7 {[%emt 0:00:06]} Rb8 {[%emt 0:00:11]} 10. Qa6 {[%emt 0:00:14]} Nf6 {[%emt 0:04:24]} 11. Nbd2 {[%emt 0:01:01]} Bd6 {[%emt 0:15:13]} 12. a3 {[%emt 0:00:44]} O-O {[%emt 0:00:56]} 13. b4 {[%emt 0:18:39]} Ng4 {[%emt 0:10:40]} 14. h3 {[%emt 0:13:30]} Nge5 {[%emt 0:06:20]} 15. Nxe5 {[%emt 0:01:14]} Nxe5 {[%emt 0:01:02]} 16. f4 {[%emt 0:03:53]} Ng6 {[%emt 0:08:09]} 17. g3 {[%emt 0:12:38]} c5 {[%emt 0:04:35]} 18. bxc5 {[%emt 0:06:20]} Bxc5 {[%emt 0:00:07]} 19. Qd3 {[%emt 0:02:36]} Qa4 {[%emt 0:06:38]} 20. h4 {[%emt 0:06:03]} Rfc8 {[%emt 0:10:30]} 21. Rb1 {[%emt 0:05:57]} Bb6 {[%emt 0:05:36]} 22. Rb4 {[%emt 0:03:07]} Rc3 {[%emt 0:05:09]} 23. Rxa4 {[%emt 0:05:49]} Rxd3 {[%emt 0:00:07]} 24. Kg2 {[%emt 0:02:43]} Rc8 {[%emt 0:01:22]} 25. Nc4 {[%emt 0:01:42]} Rc3 {[%emt 0:02:53]} 26. Nxb6 {[%emt 0:00:34]} Rc2+ {[%emt 0:07:38]} 27. Rf2 {[%emt 0:03:02]} axb6 {[%emt 0:02:59]} 28. Bd2 {[%emt 0:00:13]} Rd8 {[%emt 0:01:49]} 29. Ra6 {[%emt 0:01:55]} Rc6 {[%emt 0:03:17]} 30. Bb4 {[%emt 0:00:59]} Nf8 {[%emt 0:00:44]} 31. Rd2 {[%emt 0:00:46]} e5 {[%emt 0:01:56]} 32. Kf3 {[%emt 0:01:52]} exf4 {[%emt 0:00:53]} 33. gxf4 {[%emt 0:00:08]} Ne6 {[%emt 0:00:50]} 34. f5 {[%emt 0:00:32]} Nc5 {[%emt 0:00:59]} 35. Bxc5 {[%emt 0:02:27]} Rxc5 {[%emt 0:00:05]} 36. Rxb6 {[%emt 0:01:01]} Rc3+ {[%emt 0:00:16]} 37. Kf4 {[%emt 0:00:05]} Rxa3 {[%emt 0:00:24]} 38. Rb4 {[%emt 0:00:22]} d3 {[%emt 0:00:58]} 39. Rb7 {[%emt 0:00:19]} Ra4 {[%emt 0:00:41]} 40. Rg2 1-0

[Event "WJCC U20 Open 2019"]
[Site "New Delhi"]
[Date "2019.10.17"]
[Round "4.45"]
[White "Swarnavo Choudhury"]
[Black "Raahul V S"]
[Result "1/2-1/2"]
[ECO "C60"]
[WhiteElo "1797"]
[BlackElo "2262"]
[Annotator "NA"]
[PlyCount "90"]
[EventDate "2019.10.15"]
[EventType "swiss"]
[EventCountry "IND"]
[SourceTitle "playchess.com"]
[Source "ChessBase"]
[SourceQuality "1"]
[TimeControl "40/5400+30:1800+30"]

1. e4 {[%emt 0:00:00]} e5 {[%emt 0:00:00]} 2. Nf3 {[%emt 0:00:00]} Nc6 {[%emt 0:00:00]} 3. Bb5 {[%emt 0:00:00]} g6 {[%emt 0:00:08]} 4. O-O {[%emt 0:00:00]} Bg7 {[%emt 0:00:05]} 5. c3 {[%emt 0:01:00]} a6 {[%emt 0:00:03]} 6. Ba4 {[%emt 0:00:49]} d6 {[%emt 0:01:01]} 7. d4 {[%emt 0:01:59]} Bd7 {[%emt 0:00:07]} 8. Re1 {[%emt 0:04:53]} Nge7 {[%emt 0:03:18]} 9. Bg5 {[%emt 0:08:53]} h6 {[%emt 0:06:39]} 10. Bh4 {[%emt 0:02:25]} b5 {[%emt 0:00:43]} 11. Bc2 {[%emt 0:08:19]} O-O {[%emt 0:02:48]} 12. dxe5 {[%emt 0:02:59]} dxe5 {[%emt 0:00:50]} 13. Bg3 {[%emt 0:03:30]} Nc8 {[%emt 0:04:51]} 14. Nbd2 {[%emt 0:01:52]} Nd6 {[%emt 0:00:46]} 15. h3 {[%emt 0:00:53]} Qe7 {[%emt 0:07:16]} 16. Nf1 {[%emt 0:02:07]} Na5 {[%emt 0:00:24]} 17. Ne3 {[%emt 0:06:42]} c6 {[%emt 0:00:05]} 18. Nf1 {[%emt 0:01:43]} Rad8 {[%emt 0:00:56]} 19. b3 {[%emt 0:01:05]} Nab7 {[%emt 0:03:13]} 20. Qe2 {[%emt 0:00:27]} f6 {[%emt 0:04:39]} 21. Rad1 {[%emt 0:01:56]} Nc5 {[%emt 0:01:52]} 22. Nh4 {[%emt 0:03:21]} Be8 {[%emt 0:04:25]} 23. f4 {[%emt 0:03:03]} Ndb7 {[%emt 0:18:09]} 24. Rxd8 {[%emt 0:09:22]} Nxd8 {[%emt 0:00:28]} 25. f5 {[%emt 0:03:28]} g5 {[%emt 0:00:04]} 26. Ng6 {[%emt 0:00:20]} Bxg6 {[%emt 0:00:05]} 27. fxg6 {[%emt 0:00:04]} Nce6 {[%emt 0:01:54]} 28. Ne3 {[%emt 0:02:11]} Qc5 {[%emt 0:00:02]} 29. Kh1 {[%emt 0:06:14]} Qxc3 {[%emt 0:00:19]} 30. Nf5 {[%emt 0:06:09]} Nd4 {[%emt 0:00:31]} 31. Nxd4 {[%emt 0:00:34]} exd4 {[%emt 0:00:18]} 32. Bd6 {[%emt 0:00:02]} Re8 {[%emt 0:00:01]} 33. Rd1 {[%emt 0:00:40]} Ne6 {[%emt 0:00:53]} 34. Qf2 {[%emt 0:02:13]} c5 {[%emt 0:07:34]} 35. e5 {[%emt 0:02:22]} Qe3 {[%emt 0:00:57]} 36. Qf5 {[%emt 0:04:11]} Qf4 {[%emt 0:00:56]} 37. exf6 {[%emt 0:01:15]} Qxf5 {[%emt 0:00:02]} 38. Bxf5 {[%emt 0:00:19]} Bxf6 {[%emt 0:00:01]} 39. Re1 {[%emt 0:01:10]} Ng7 {[%emt 0:00:53]} 40. Rxe8+ {[%emt 0:00:10]} Nxe8 {[%emt 0:00:03]} 41. Bxc5 {[%emt 0:30:08]} Kg7 {[%emt 0:30:06]} 42. Kg1 {[%emt 0:03:04]} Nc7 {[%emt 0:00:09]} 43. Kf2 {[%emt 0:02:58]} Nd5 {[%emt 0:00:02]} 44. a3 {[%emt 0:03:15]} Nf4 {[%emt 0:03:57]} 45. g3 {[%emt 0:02:02]} Nxg6 {[%emt 0:01:01]} 1/2-1/2

[Event "WJCC U20 Open 2019"]
[Site "New Delhi"]
[Date "2019.10.17"]
[Round "4.46"]
[White "Licheli, Luka"]
[Black "Zrikem, Nassim"]
[Result "1-0"]
[ECO "C26"]
[WhiteElo "2010"]
[BlackElo "2125"]
[Annotator "NA"]
[PlyCount "55"]
[EventDate "2019.10.15"]
[EventType "swiss"]
[EventCountry "IND"]
[SourceTitle "playchess.com"]
[Source "ChessBase"]
[SourceQuality "1"]
[TimeControl "40/5400+30:1800+30"]

1. e4 e5 2. Nc3 Nf6 3. g3 d5 4. exd5 Nxd5 5. Bg2 Nxc3 6. bxc3 Bc5 7. d3 O-O 8. Qe2 Nc6 9. Nf3 Qf6 10. Ng5 Bb6 11. O-O h6 12. Ne4 Qg6 13. Ba3 Re8 14. h3 Rb8 15. Kh2 f5 16. Nd2 Be6 17. Nb3 Bxb3 18. axb3 e4 19. d4 Rbd8 20. Rae1 Kh8 21. f3 f4 22. gxf4 exf3 23. Qxf3 Qxc2 24. f5 Qxb3 25. Rxe8+ Rxe8 26. Qh5 Qg8 27. f6 gxf6 28. Rxf6 1-0

[Event "WJCC U20 Open 2019"]
[Site "New Delhi"]
[Date "2019.10.18"]
[Round "5.2"]
[White "Hakobyan, Aram"]
[Black "Santos Ruiz, Miguel"]
[Result "1-0"]
[ECO "D38"]
[WhiteElo "2561"]
[BlackElo "2560"]
[Annotator "RC"]
[PlyCount "59"]
[EventDate "2019.10.15"]
[EventType "swiss"]
[EventCountry "IND"]
[SourceTitle "playchess.com"]
[Source "ChessBase"]
[SourceQuality "1"]
[TimeControl "40/5400+30:1800+30"]

1. d4 {[%emt 0:00:00]} Nf6 {[%emt 0:00:00]} 2. Nf3 {[%emt 0:00:00]} d5 {[%emt 0:00:00]} 3. c4 {[%emt 0:00:00]} e6 {[%emt 0:00:00]} 4. Nc3 {[%emt 0:00:00]} Bb4 {[%emt 0:00:00]} 5. Qa4+ {[%emt 0:00:00]} Nc6 {[%emt 0:00:00]} 6. e3 {[%emt 0:00:00]} O-O {[%emt 0:00:00]} 7. Qc2 {[%emt 0:00:00]} b6 {[%emt 0:00:07]} 8. Bd2 {[%emt 0:00:45]} Bb7 {[%emt 0:00:21]} 9. a3 {[%emt 0:00:02]} Bd6 {[%emt 0:00:20]} 10. cxd5 {[%emt 0:00:03]} exd5 {[%emt 0:00:05]} 11. Nb5 {[%emt 0:00:03]} Be7 {[%emt 0:02:35]} 12. Bd3 {[%emt 0:00:02]} a6 {[%emt 0:01:43]} 13. Nc3 {[%emt 0:00:01]} Bd6 {[%emt 0:06:24]} 14. O-O {[%emt 0:00:03]} Re8 {[%emt 0:00:53]} 15. b4 {[%emt 0:00:14]} Qe7 {[%emt 0:09:41]} 16. Rfc1 {[%emt 0:00:40]} Nb8 {[%emt 0:03:28]} 17. Qb3 {[%emt 0:00:16]} b5 {[%emt 0:11:20]} 18. a4 {[%emt 0:01:41]} c6 {[%emt 0:00:57]} 19. e4 {[%emt 0:01:29]} dxe4 {[%emt 0:09:37]} 20. Nxe4 {[%emt 0:01:58]} Nbd7 {[%emt 0:03:59]} 21. Bg5 {[%emt 0:17:40]} Bxb4 {[%emt 0:16:13]} 22. Ne5 {[%emt 0:05:29]} Qe6 {[%emt 0:04:27]} 23. Qxb4 {[%emt 0:14:03]} Nxe4 {[%emt 0:00:10]} 24. Bxe4 {[%emt 0:00:27]} Nxe5 {[%emt 0:00:07]} 25. axb5 {[%emt 0:08:57]} axb5 {[%emt 0:14:37]} 26. Rxa8 {[%emt 0:01:27]} Bxa8 {[%emt 0:00:05]} 27. dxe5 {[%emt 0:02:43]} Qxe5 {[%emt 0:00:04]} 28. Re1 {[%emt 0:00:54]} Kh8 {[%emt 0:02:55]} 29. Bh4 {[%emt 0:17:33]} f5 {[%emt 0:07:16]} 30. f4 {[%emt 0:02:32]} 1-0

[Event "WJCC U20 Open 2019"]
[Site "New Delhi"]
[Date "2019.10.18"]
[Round "5.7"]
[White "Costachi, Mihnea"]
[Black "Wang, Shixu B"]
[Result "1/2-1/2"]
[ECO "D37"]
[WhiteElo "2463"]
[BlackElo "2370"]
[Annotator "ChessBase"]
[PlyCount "46"]
[EventDate "2019.10.15"]
[EventType "swiss"]
[EventCountry "IND"]
[SourceTitle "playchess.com"]
[Source "ChessBase"]
[SourceQuality "1"]
[TimeControl "40/5400+30:1800+30"]

1. d4 {[%emt 0:00:00]} Nf6 {[%emt 0:00:00]} 2. c4 {[%emt 0:00:00]} e6 {[%emt 0:00:00]} 3. Nf3 {[%emt 0:00:38]} d5 {[%emt 0:00:13]} 4. Nc3 {[%emt 0:00:13]} Be7 {[%emt 0:00:08]} 5. Bg5 {[%emt 0:01:11]} h6 {[%emt 0:00:42]} 6. Bxf6 {[%emt 0:02:49]} Bxf6 {[%emt 0:00:09]} 7. Qc2 {[%emt 0:06:10]} c6 {[%emt 0:00:30]} 8. e4 {[%emt 0:00:30]} O-O {[%emt 0:00:30]} 9. O-O-O {[%emt 0:00:30]} Na6 {[%emt 0:00:30]} 10. h3 {[%emt 0:00:30]} Nb4 {[%emt 0:18:17]} 11. Qd2 {[%emt 0:20:46]} dxc4 {[%emt 0:00:30]} 12. g4 {[%emt 0:00:30]} c5 {[%emt 0:00:30]} 13. g5 {[%emt 0:00:30]} Bxd4 {[%emt 0:00:30]} 14. gxh6 {[%emt 0:00:30]} Qf6 {[%emt 0:00:30]} 15. Rg1 {[%emt 0:00:30]} Qxf3 {[%emt 0:00:30]} 16. hxg7 {[%emt 0:00:30]} Rd8 {[%emt 0:29:59]} 17. Qh6 {[%emt 0:39:13]} Be3+ {[%emt 0:00:30]} 18. fxe3 {[%emt 0:00:30]} Nxa2+ {[%emt 0:00:30]} 19. Kc2 {[%emt 0:00:30]} Nb4+ {[%emt 0:00:30]} 20. Kc1 {[%emt 0:00:30]} Na2+ {[%emt 0:00:30]} 21. Kc2 {[%emt 0:00:30]} Nb4+ {[%emt 0:00:30]} 22. Kc1 {[%emt 0:00:30]} Na2+ {[%emt 0:00:30]} 23. Kc2 {[%emt 0:00:30]} Nb4+ {[%emt 0:00:30]} 1/2-1/2

[Event "WJCC U20 Open 2019"]
[Site "New Delhi"]
[Date "2019.10.18"]
[Round "5.11"]
[White "Miciano, John Marvin"]
[Black "Kollars, Dmitrij"]
[Result "1/2-1/2"]
[ECO "A06"]
[WhiteElo "2345"]
[BlackElo "2587"]
[Annotator "ChessBase"]
[PlyCount "160"]
[EventDate "2019.10.15"]
[EventType "swiss"]
[EventCountry "IND"]
[SourceTitle "playchess.com"]
[Source "ChessBase"]
[SourceQuality "1"]
[TimeControl "40/5400+30:1800+30"]

1. Nf3 d5 2. g3 Nf6 3. Bg2 Bf5 4. O-O e6 5. d3 Be7 6. c4 c6 7. Be3 Nbd7 8. Qb3 Qc7 9. Rc1 O-O 10. Nc3 dxc4 11. Qxc4 e5 12. d4 Nb6 13. Qb3 Be6 14. Qc2 Ng4 15. Bd2 exd4 16. Nb5 Qc8 17. Nbxd4 Bd7 18. b4 Bf6 19. Rab1 Re8 20. a4 Ne5 21. Ng5 Ng6 22. Ngf3 Ne5 23. Nxe5 Bxe5 24. Nf3 Bf6 25. Ng5 Bf5 26. e4 Bg6 27. Re1 Nd7 28. Nh3 Bd4 29. Nf4 a6 30. Rbd1 Ne5 31. Bc3 Ba7 32. h3 f6 33. Nxg6 hxg6 34. Kh1 Qe6 35. f4 Nc4 36. Bd4 b5 37. Bf1 Kh7 38. Kh2 a5 39. Bxc4 bxc4 40. bxa5 Reb8 41. f5 gxf5 42. exf5 Qf7 43. Re4 Rd8 44. Bxa7 Rxd1 45. Qxd1 Qxa7 46. Qe2 Qf7 47. Qxc4 Qxc4 48. Rxc4 Rxa5 49. g4 Kg8 50. Kg3 Kf7 51. Re4 Rc5 52. h4 Rc1 53. g5 fxg5 54. hxg5 c5 55. Re6 c4 56. Rc6 c3 57. Rc7+ Kf8 58. Kf2 c2 59. Ke2 Ra1 60. Rxc2 Rxa4 61. Kf3 Rb4 62. Re2 Kf7 63. Rc2 Ra4 64. Rc7+ Kf8 65. Rc6 Kf7 66. Rc7+ Kf8 67. g6 Rb4 68. Rf7+ Kg8 69. Ke3 Ra4 70. Rd7 Kf8 71. Rd4 Ra8 72. Kf4 Rb8 73. Rd7 Re8 74. Rd5 Re1 75. Re5 Rf1+ 76. Ke4 Re1+ 77. Kd5 Ra1 78. Kc6 Ra6+ 79. Kc7 Ra7+ 80. Kb6 Ra1 1/2-1/2

[Event "WJCC U20 Open 2019"]
[Site "New Delhi"]
[Date "2019.10.18"]
[Round "5.12"]
[White "Harsha Bharathakoti"]
[Black "Sankalp Gupta"]
[Result "1-0"]
[ECO "E10"]
[WhiteElo "2530"]
[BlackElo "2369"]
[Annotator "ChessBase"]
[PlyCount "129"]
[EventDate "2019.10.15"]
[EventType "swiss"]
[EventCountry "IND"]
[SourceTitle "playchess.com"]
[Source "ChessBase"]
[SourceQuality "1"]
[TimeControl "40/5400+30:1800+30"]

1. d4 {[%emt 0:00:12]} e6 {[%emt 0:04:44]} 2. c4 {[%emt 0:01:29]} Nf6 {[%emt 0:00:12]} 3. Nf3 {[%emt 0:00:35]} d5 {[%emt 0:00:30]} 4. g3 {[%emt 0:01:20]} Bb4+ {[%emt 0:00:12]} 5. Bd2 {[%emt 0:01:36]} Be7 {[%emt 0:00:05]} 6. Bg2 {[%emt 0:00:13]} c6 {[%emt 0:00:08]} 7. O-O {[%emt 0:01:16]} Nbd7 {[%emt 0:00:04]} 8. Qc2 {[%emt 0:00:11]} O-O {[%emt 0:00:12]} 9. a4 {[%emt 0:00:07]} Ne4 {[%emt 0:00:15]} 10. a5 {[%emt 0:21:58]} a6 {[%emt 0:13:18]} 11. Rd1 {[%emt 0:06:41]} f5 {[%emt 0:05:04]} 12. Nc3 {[%emt 0:08:33]} Bf6 {[%emt 0:03:48]} 13. Na4 {[%emt 0:04:54]} Qe7 {[%emt 0:06:37]} 14. Bc3 {[%emt 0:07:58]} g5 {[%emt 0:13:47]} 15. Ne5 {[%emt 0:06:29]} Nxc3 {[%emt 0:06:34]} 16. Qxc3 {[%emt 0:01:18]} Nxe5 {[%emt 0:00:03]} 17. dxe5 {[%emt 0:00:08]} Bg7 {[%emt 0:00:06]} 18. f4 {[%emt 0:01:39]} gxf4 {[%emt 0:06:17]} 19. gxf4 {[%emt 0:00:06]} Kh8 {[%emt 0:01:04]} 20. b4 {[%emt 0:21:43]} Bh6 {[%emt 0:02:39]} 21. e3 {[%emt 0:01:54]} Rg8 {[%emt 0:05:49]} 22. Kh1 {[%emt 0:00:18]} Bd7 {[%emt 0:14:57]} 23. Rg1 {[%emt 0:03:31]} Rg7 {[%emt 0:01:53]} 24. Nc5 {[%emt 0:01:00]} Rag8 {[%emt 0:00:24]} 25. Bf3 {[%emt 0:03:45]} Rxg1+ {[%emt 0:01:22]} 26. Rxg1 {[%emt 0:00:04]} Rxg1+ {[%emt 0:00:06]} 27. Kxg1 {[%emt 0:00:02]} Be8 {[%emt 0:00:07]} 28. Qd4 {[%emt 0:02:07]} Bf8 {[%emt 0:00:27]} 29. Kf1 {[%emt 0:01:10]} Kg7 {[%emt 0:02:29]} 30. Ke2 {[%emt 0:01:27]} Kh8 {[%emt 0:00:17]} 31. Kd3 {[%emt 0:00:51]} Kg7 {[%emt 0:00:19]} 32. Kc3 {[%emt 0:00:05]} Kh8 {[%emt 0:00:06]} 33. Kb3 {[%emt 0:00:17]} Kg7 {[%emt 0:00:10]} 34. Kc3 {[%emt 0:00:07]} Kh8 {[%emt 0:00:03]} 35. Nd3 {[%emt 0:01:17]} Qd8 {[%emt 0:06:52]} 36. Qb6 {[%emt 0:01:01]} Qxb6 {[%emt 0:04:24]} 37. axb6 {[%emt 0:00:02]} Kg7 {[%emt 0:00:08]} 38. Kd4 {[%emt 0:01:03]} Kf7 {[%emt 0:00:47]} 39. Nc5 {[%emt 0:00:30]} Bxc5+ {[%emt 0:00:08]} 40. Kxc5 {[%emt 0:00:02]} Ke7 {[%emt 0:00:08]} 41. Be2 {[%emt 0:04:08]} Kd7 {[%emt 0:11:46]} 42. Bd1 {[%emt 0:06:08]} dxc4 {[%emt 0:03:59]} 43. Kxc4 {[%emt 0:00:06]} Bf7 {[%emt 0:00:51]} 44. Kc5 {[%emt 0:01:02]} Be8 {[%emt 0:00:27]} 45. Bf3 {[%emt 0:02:04]} Bg6 {[%emt 0:00:42]} 46. Bd1 {[%emt 0:01:29]} Bf7 {[%emt 0:00:17]} 47. Bc2 {[%emt 0:00:04]} Bg6 {[%emt 0:01:27]} 48. Kd4 {[%emt 0:02:38]} h6 {[%emt 0:04:16]} 49. Bd3 {[%emt 0:01:00]} Bh7 {[%emt 0:00:14]} 50. e4 {[%emt 0:04:09]} fxe4 {[%emt 0:02:33]} 51. Bxe4 {[%emt 0:00:03]} Bf5 {[%emt 0:00:07]} 52. Ke3 {[%emt 0:01:32]} Bh3 {[%emt 0:01:09]} 53. Kf3 {[%emt 0:01:36]} Kd8 {[%emt 0:04:31]} 54. Bd3 {[%emt 0:02:03]} h5 {[%emt 0:01:03]} 55. Kg3 {[%emt 0:00:29]} Bg4 {[%emt 0:00:02]} 56. Kh4 {[%emt 0:04:27]} Bf3 {[%emt 0:00:51]} 57. Kg5 {[%emt 0:00:28]} Ke7 {[%emt 0:00:25]} 58. h4 {[%emt 0:01:54]} Kf7 {[%emt 0:00:03]} 59. Bg6+ {[%emt 0:00:36]} Ke7 {[%emt 0:01:26]} 60. Bxh5 {[%emt 0:00:13]} Bxh5 {[%emt 0:00:06]} 61. Kxh5 {[%emt 0:00:03]} Kd7 {[%emt 0:00:08]} 62. Kg6 {[%emt 0:01:07]} c5 {[%emt 0:00:01]} 63. bxc5 {[%emt 0:00:08]} a5 {[%emt 0:00:01]} 64. f5 {[%emt 0:00:29]} a4 {[%emt 0:00:02]} 65. Kf7 {[%emt 0:00:37]} 1-0